Workbook

Sheet ADA CONSTRUCTION DEC 2021 CAA
A1: DEPARTMENT OF TRANSPORTATION - CALTRANS
A2: DBE Commitment at Award (CAA) on Federally Funded Major Construction Contracts - October 1, 2021 - December 31, 2021
A4: Total Award Amount Year-to-Date (YTD) | D4: Total DBE Commitment Amount YTD | G4: Total Prime Contracts Awarded YTD
A5: 324201172 | D5: =SUM(C7:C18) -> 64131156.4 | G5: =SUM(C165:C181,J165:J181,F165:F181) -> 42
A6: Groups | C6: Commitment Dollars YTD | D6: Firms YTD | E6: Contracts YTD | F6: % of Contracts | G6: % of DBE $ | H6: % of Total $
A7: Hispanic American Male | C7: =SUMIF(D30:D75,"m", C30:C75) -> 14415111.68 | D7: =COUNTIF(D30:D75,"M") -> 31 | E7: =SUMIF(D30:D75,"M",E30:E75) -> 49 | F7: =E7/E20 -> 0.2487309645 | G7: =C7/D5 -> 0.2247754834 | H7: =C7/A5 -> 0.04446347801
A8: Hispanic American Female | C8: =SUMIF(D30:D75,"F", C30:C75) -> 10523194.54 | D8: =COUNTIF(D30:D75,"F") -> 13 | E8: =SUMIF(D30:D75,"F",E30:E75) -> 25 | F8: =E8/E20 -> 0.1269035533 | G8: =C8/D5 -> 0.1640886448 | H8: =C8/A5 -> 0.03245884176
A9: African American Male | C9: =SUMIF(D90:D98,"m", C90:C98) -> 1693530.95 | D9: =COUNTIF(D90:D98,"M") -> 6 | E9: =SUMIF(D90:D98,"M",E90:E98) -> 9 | F9: =E9/E20 -> 0.04568527919 | G9: =C9/D5 -> 0.02640730411 | H9: =C9/A5 -> 0.005223703973
A10: African American Female | C10: =SUMIF(D90:D98,"F", C90:C98) -> 289454.8 | D10: =COUNTIF(D90:D98,"F") -> 2 | E10: =SUMIF(D90:D98,"F",E90:E98) -> 5 | F10: =E10/E20 -> 0.02538071066 | G10: =C10/D5 -> 0.004513481687 | H10: =C10/A5 -> 0.0008928246565
A11: Asian Pacific Male | C11: =SUMIF(D111:D119,"m", C111:C119) -> 6031629.2 | D11: =COUNTIF(D111:D119,"M") -> 3 | E11: =SUMIF(D111:D119,"M",E111:E119) -> 6 | F11: =E11/E20 -> 0.03045685279 | G11: =C11/D5 -> 0.09405146482 | H11: =C11/A5 -> 0.0186045879
A12: Asian Pacific Female | C12: =SUMIF(D111:D119,"F", C111:C119) -> 593771.09 | D12: =COUNTIF(D111:D119,"F") -> 4 | E12: =SUMIF(D111:D119,"F",E111:E119) -> 10 | F12: =E12/E20 -> 0.05076142132 | G12: =C12/D5 -> 0.009258699255 | H12: =C12/A5 -> 0.001831489647
A13: Subcontinent Asian Male | C13: =SUMIF(D102:D108,"m", C102:C108) -> 11983239.36 | D13: =COUNTIF(D102:D108,"M") -> 5 | E13: =SUMIF(D102:D108,"M",E102:E108) -> 7 | F13: =E13/E20 -> 0.03553299492 | G13: =C13/D5 -> 0.1868551892 | H13: =C13/A5 -> 0.0369623567
A14: Subcontinent Asian Female | C14: =SUMIF(D102:D108,"F", C102:C108) -> 62125 | D14: =COUNTIF(D102:D108,"F") -> 1 | E14: =SUMIF(D102:D108,"F",E102:E108) -> 1 | F14: =E14/E20 -> 0.005076142132 | G14: =C14/D5 -> 0.0009687179132 | H14: =C14/A5 -> 0.0001916248471
A15: Native American Male | C15: =SUMIF(D78:D87,"m", C78:C87) -> 3362496.38 | D15: =COUNTIF(D78:D87,"M") -> 7 | E15: =SUMIF(D78:D87,"M",E78:E87) -> 14 | F15: =E15/E20 -> 0.07106598985 | G15: =C15/D5 -> 0.05243155696 | H15: =C15/A5 -> 0.01037163549
A16: Native American Female | C16: =SUMIF(D78:D87,"F", C78:C87) -> 1080000 | D16: =COUNTIF(D78:D87,"F") -> 1 | E16: =SUMIF(D78:D87,"F",E78:E87) -> 1 | F16: =E16/E20 -> 0.005076142132 | G16: =C16/D5 -> 0.01684048847 | H16: =C16/A5 -> 0.003331264947
A17: Non Minority Women | C17: =SUMIF(D127:D159,"F", C127:C159) -> 14096603.4 | D17: =COUNTIF(D127:D159,"F") -> 32 | E17: =SUMIF(D127:D159,"F",E127:E159) -> 70 | F17: =E17/E20 -> 0.3553299492 | G17: =C17/D5 -> 0.2198089695 | H17: =C17/A5 -> 0.04348103776
A18: Other Men | C18: =SUMIF(D122:D124,"m", C122:C124) -> 0 | D18: =COUNTIF(D122:D124,"M") -> 0 | E18: =SUMIF(D122:D124,"M",E122:E124) -> 0 | F18: =E18/E20 -> 0 | G18: =C18/D5 -> 0 | H18: =C18/A5 -> 0
F19: =E19/E20 -> 0 | G19: =C19/D5 -> 0 | H19: =C19/A5 -> 0
A20: Total | D20: =SUM(D7:D19) -> 105 | E20: =SUM(E7:E19) -> 197
A21: Total Primes Contractors | C21: =G5 -> 42
A23: Yellow = DBEs | C23: Green = Trucking | D23: =COUNTIF(B30:B160,43) -> 14 | E23: =SUM(SUMIF(B29:B75,"43",C29:C75),SUMIF(B77:B124,"43",C77:C124),SUMIF(B126:B160,"43",C126:C160)) -> 11922948.65 | F23: =E23/D5 -> 0.1859150734
A24: Red = Prime Contractor | C24: Blue = Supplier | D24: =COUNTIF(B30:B160,33) -> 17 | E24: =SUM(SUMIF(B30:B75,"33",C30:C75),SUMIF(B78:B124,"33",C78:C124),SUMIF(B131:B160,"33",C131:C160)) -> 17236537.56 | F24: =E24/D5 -> 0.2687701038
A25: Red Italic = DBE firm as Prime | C25: White = Other | D25: =COUNTIF(B30:B160,-4142) -> 55 | E25: =D5-(E23+E24) -> 34971670.19 | F25: =E25/D5 -> 0.5453148228
A26: BOLD = women
A27: * = Used both as Trucking & Supplier
A29: Hispanic American | B29: Column1 | C29: Dollars | D29: M/F | E29: Contract | F29: Contract # | G29: Prime | H29: Prime Name | I29: Districts
A30: ABSL CONSTRUCTION | B30: -4142 | C30: ='[1]Construction Worksheet'!G12 -> 372810 | D30: M | E30: 5 | F30: =fetchcomment(E30) -> 03-0H8304 03-1H18U4 05-1J4804 08-1H8304 05-1M3704 | G30: 4 | H30: =fetchcomment(G30) -> MARTIN BROTHERS CONSTRUCTION TEICHERT CONSTRUCTGION GRANITE ROCK COMPANY GRANITE CONSTRUCTION COMPANY | I30: 3,5,8
A31: AUSTIN ENTERPRISE | B31: -4142 | C31: ='[1]Construction Worksheet'!C8 -> 227969.69 | D31: F | E31: 2 | F31: =fetchcomment(E31) -> 03-1H18U4 05-1J4804 | G31: 2 | H31: =fetchcomment(G31) -> TEICHERT CONSTRUCTION GRANITE ROCK COMPANY | I31: 3,5
A32: C & N REINFORCING INC | B32: -4142 | C32: ='[1]Construction Worksheet'!G17 -> 659443 | D32: M | E32: 1 | F32: =fetchcomment(E32) -> 01-0B5304 | G32: 1 | H32: =fetchcomment(G32) -> MERCER FRASER COMPANY | I32: 1
A33: CALI CONSTRUCTION | B33: -4142 | C33: ='[1]Construction Worksheet'!G26 -> 606500 | D33: M | E33: 1 | F33: =fetchcomment(E33) -> 11-411804 | G33: 1 | H33: =fetchcomment(G33) -> PAL GENERAL ENGINEERING INC | I33: 11
A34: CENTRAL COAST TRAFFIC SAFETY INC | B34: -4142 | C34: ='[1]Construction Worksheet'!G33 -> 404753 | D34: M | E34: 2 | F34: =fetchcomment(E34) -> 05-1G9604 05-1M3704 | G34: 2 | H34: =fetchcomment(G34) -> LEE WILSON ELECTRIC COMPANY INC GRANITE CONSTRUCTION COMPANY | I34: 5
A35: D.B. ELECTRIC INC | B35: -4142 | C35: ='[1]Construction Worksheet'!G39 -> 475418 | D35: M | E35: 1 | F35: =fetchcomment(E35) -> 12-0H0474 | G35: 1 | H35: =fetchcomment(G35) -> SECURITY PAVING COMPANY INC | I35: 12
A36: D.C. DRILLING INC | B36: -4142 | C36: ='[1]Construction Worksheet'!G47 -> 382300 | D36: M | E36: 2 | F36: =fetchcomment(E36) -> 06-0V7804 07-359604 | G36: 2 | H36: =fetchcomment(G36) -> ALDRIDGE ELECTRIC INC COMET ELECTRIC INC | I36: 6,7
A37: DE LA FUENTE CONSTRUCTION | B37: -4142 | C37: ='[1]Construction Worksheet'!G52 -> 349999.65 | D37: M | E37: 1 | F37: =fetchcomment(E37) -> 11-430604 | G37: 1 | H37: =fetchcomment(G37) -> HAZARD CONSTRUCTION ENGR LLC | I37: 11
A38: DELTA BAY CONSULTANTS | B38: -4142 | C38: ='[1]Construction Worksheet'!G58 -> 2400 | D38: M | E38: 2 | F38: =fetchcomment(E38) -> 05-1J4804 07-329804 | G38: 2 | H38: =fetchcomment(G38) -> GRANITE ROCK COMPANY PETERSON CHASE ENGINEERING CONSTRUCTION | I38: 5,7
A39: DLR PLANNING | B39: -4142 | C39: ='[1]Construction Worksheet'!C14 -> 316856.26 | D39: F | E39: 1 | F39: =fetchcomment(E39) -> 01-0B5304 | G39: 1 | H39: =fetchcomment(G39) -> MERCER-FRASER COMPANY | I39: 1
A40: DON MAHAFFEY DRILLING COMPANY | B40: -4142 | C40: ='[1]Construction Worksheet'!C49 -> 398765 | D40: F | E40: 1 | F40: =fetchcomment(E40) -> 05-1K0504 | G40: 1 | H40: =fetchcomment(G40) -> GORDON N BALL INC | I40: 5
A41: DOUBLE M TRUCKING INC | B41: 43 | C41: ='[1]Construction Worksheet'!G65 -> 4589986.65 | D41: M | E41: 3 | F41: =fetchcomment(E41) -> 03-0H6504 03-1H18U4 03-4F38U4 | G41: 2 | H41: =fetchcomment(G41) -> TEICHERT & SONS DBA TEICHERT CONSTRUCTION DESILVA GATES CONSTRUCTION | I41: 3
A42: DRAGON MATERIAL TRANSPORT | B42: 33 | C42: ='[1]Construction Worksheet'!C26 -> 4861824 | D42: F | E42: 3 | F42: =fetchcomment(E42) -> 03-0H8304 03-4F38U4 05-1J4804 | G42: 3 | H42: =fetchcomment(G42) -> MARTIN BROTHERS CONSTRUCTION DESILVA GATES CONSTRUCTION LP GRANITE ROCK COMPANY | I42: 3,5
A43: DRS REBAR INC | B43: -4142 | C43: ='[1]Construction Worksheet'!G70 -> 88412 | D43: M | E43: 2 | F43: =fetchcomment(E43) -> 12-0H0474 08-1J2004 | G43: 1 | H43: =fetchcomment(G43) -> SECURITY PAVING COMPANY INC | I43: 8,12
A44: EIGHTEEN TRUCKING | B44: 43 | C44: ='[1]Construction Worksheet'!C54 -> 37465 | D44: F | E44: 1 | F44: =fetchcomment(E44) -> 05-1K0604 | G44: 1 | H44: =fetchcomment(G44) -> GORDON N BALL INC | I44: 5
A45: FLASH TRAFFIC | B45: -4142 | C45: ='[1]Construction Worksheet'!C59 -> 8952 | D45: F | E45: 1 | F45: =fetchcomment(E45) -> 05-1K0604 | G45: 1 | H45: =fetchcomment(G45) -> GORDON N BALL INC | I45: 5
A46: FULL TRAFFIC MAINTENANCE INC | B46: 33 | C46: ='[1]Construction Worksheet'!G78 -> 681683.32 | D46: M | E46: 3 | F46: =fetchcomment(E46) -> 11-430014 08-1H8304 07-329804 | G46: 3 | H46: =fetchcomment(G46) -> RAL INVESTMENT CORPORATION DBA SILVERSTRAND CONSTRUCTION GRANITE CONSTRUCTION COMPANY PETERSON-CHASE GENERAL ENGINEERING CONSTRUCTION | I46: 7,8,11
A47: G & F CONCRETE CUTTING | B47: -4142 | C47: ='[1]Construction Worksheet'!C64 -> 9212 | D47: F | E47: 1 | F47: =fetchcomment(E47) -> 08-1J2004 | G47: 1 | H47: =fetchcomment(G47) -> SECURITY PAVING COMPANY INC | I47: 8
A48: G & G ELECTRIC | C48: ='[1]Construction Worksheet'!G84 -> 247300 | D48: M | E48: 1 | F48: =fetchcomment(E48) -> 07-325304 | G48: 1 | H48: =fetchcomment(G48) -> POWELL CONSTRUCTORS INC | I48: 7
A49: GOLDEN BAY FENCE | C49: ='[1]Construction Worksheet'!G92 -> 242035 | D49: M | E49: 1 | F49: =fetchcomment(E49) -> 10-1C7904 | G49: 1 | H49: =fetchcomment(G49) -> WALSH CONSTRUCTION COMPANY | I49: 10
A50: HER-CON CONSTRUCTION | C50: ='[1]Construction Worksheet'!G99 -> 146484 | D50: M | E50: 1 | F50: =fetchcomment(E50) -> 07-359604 | G50: 1 | H50: =fetchcomment(G50) -> COMET ELECTRIC INC | I50: 7
A51: KODIAK TRUCKING | C51: ='[1]Construction Worksheet'!G108 -> 561658 | D51: M | E51: 1 | F51: =fetchcomment(E51) -> 10-1C7904 | G51: 1 | H51: =fetchcomment(G51) -> WALSH CONSTRUCTION COMPANY | I51: 10
A52: LA FIRMA | B52: -4142 | C52: ='[1]Construction Worksheet'!G117 -> 12450 | D52: M | E52: 2 | F52: =fetchcomment(E52) -> 05-1J4804 07-329804 | G52: 2 | H52: =fetchcomment(G52) -> GRANITE ROCK COMPANY PETERSON-CHASE GENERAL ENGINEERING CONSTRUCTION | I52: 5,7
A53: LOGISTICAL ENTERPRISES | B53: 33 | C53: ='[1]Construction Worksheet'!C72 -> 1348610.54 | D53: F | E53: 3 | F53: =fetchcomment(E53) -> 04-0K6804 05-1J4804 10-1C7904 | G53: 3 | H53: =fetchcomment(G53) -> PACIFIC INFRASTRUCTURE CONSTRUCTION LLC GRANITE ROCK COMPANY WALSH CONSTRUCTION COMPANY | I53: 4,5,10
A54: LONE STAR LANDSCAPE | B54: -4142 | C54: ='[1]Construction Worksheet'!G124 -> 31855 | D54: M | E54: 2 | F54: =fetchcomment(E54) -> 04-0K6704 04-2K8204 | G54: 2 | H54: =fetchcomment(G54) -> REDGWICK CONSTRUCTION CO FBD VANGUARD CONSTRUCTION INC | I54: 4
A55: M&S ENVIRONMENTAL LANDSCAPES | B55: 33 | C55: ='[1]Construction Worksheet'!G130 -> 244530 | D55: M | E55: 1 | F55: =fetchcomment(E55) -> 03-0H8304 | G55: 1 | H55: =fetchcomment(G55) -> MARTIN BROTHERS CONSTRUCTION | I55: 3
A56: MANERI TRAFFIC CONTROL | B56: -4142 | C56: ='[1]Construction Worksheet'!C77 -> 796370.75 | D56: F | E56: 2 | F56: =fetchcomment(E56) -> 12-0H0474 08-1J2004 | G56: 1 | H56: =fetchcomment(G56) -> SECURITY PAVING COMPANY INC | I56: 8,12
A57: MARTINEZ LANDSCAPE CO | C57: ='[1]Construction Worksheet'!G136 -> 556788.6 | D57: M | E57: 2 | F57: =fetchcomment(E57) -> 07-325304 07-335304 | G57: 1 | H57: =fetchcomment(G57) -> POWELL CONSTRUCTORS INC | I57: 7
A58: MEX ELECTRIC | C58: ='[1]Construction Worksheet'!G142 -> 149888 | D58: M | E58: 1 | F58: =fetchcomment(E58) -> 07-335304 | G58: 1 | H58: =fetchcomment(G58) -> POWELL CONSTRUCTORS INC | I58: 7
A59: MIRANDA LOGISTICS ENTERPRISE LLC | C59: ='[1]Construction Worksheet'!G149 -> 96916 | D59: M | E59: 1 | F59: =fetchcomment(E59) -> 07-335304 | G59: 1 | H59: =fetchcomment(G59) -> POWELL CONSTRUCTORS INC | I59: 7
A60: MONZON & SON ENTERPRISES. INC | B60: 43 | C60: ='[1]Construction Worksheet'!G157 -> 860217 | D60: M | E60: 2 | F60: =fetchcomment(E60) -> 12-0H0474 08-1J2004 | G60: 1 | H60: =fetchcomment(G60) -> SECURITY PAVING COMPANY INC | I60: 8,12
A61: PTM GENERAL ENGINEERING SERVICE | B61: -4142 | C61: ='[1]Construction Worksheet'!C84 -> 2352944.3 | D61: F | E61: 2 | F61: =fetchcomment(E61) -> 04-3J1304 07-351804 | G61: 1 | H61: =fetchcomment(G61) -> PTM GENERAL ENGINEERING SERVICE | I61: 4,7
A62: QA CONSTRUCTORS | B62: -4142 | C62: ='[1]Construction Worksheet'!G164 -> 144244.2 | D62: M | E62: 1 | F62: =fetchcomment(E62) -> 04-3J1304 | G62: 1 | H62: =fetchcomment(G62) -> PTM GENERAL ENGINEERING SERVICE | I62: 4
A63: QUALITY TRAFFIC CONTROL | B63: -4142 | C63: ='[1]Construction Worksheet'!G170 -> 17200 | D63: M | E63: 1 | F63: =fetchcomment(E63) -> 11-430604 | G63: 1 | H63: =fetchcomment(G63) -> HAZARD CONSTRUCTION ENGR LLC | I63: 11
A64: ROBINSON SWEEPING INC | C64: ='[1]Construction Worksheet'!C90 -> 72000 | D64: F | E64: 1 | F64: =fetchcomment(E64) -> 10-1C7904 | G64: 1 | H64: =fetchcomment(G64) -> WALSH CONSTRUCTION COMPANY | I64: 10
A65: SANDOVAL SWEEPING | B65: 43 | C65: ='[1]Construction Worksheet'!G178 -> 75600 | D65: M | E65: 1 | F65: =fetchcomment(E65) -> 08-1H8304 | G65: 1 | H65: =fetchcomment(G65) -> GRANITE CONSTRUCTION COMPANY | I65: 8
A66: SUNSET ELECTRIC & LIGHTING INC | C66: ='[1]Construction Worksheet'!G186 -> 127000 | D66: M | E66: 1 | F66: =fetchcomment(E66) -> 07-329804 | G66: 1 | H66: =fetchcomment(G66) -> PETERSON-CHASE GENERAL ENGINEERING CONSTRUCTION | I66: 7
A67: SWPPQUEEN | B67: -4142 | C67: ='[1]Construction Worksheet'!C101 -> 61000 | D67: F | E67: 1 | F67: =fetchcomment(E67) -> 03-1H18U4 | G67: 1 | H67: =fetchcomment(G67) -> TEICHERT CONSTRUCTION | I67: 3
A68: TERRA WEST | B68: -4142 | C68: ='[1]Construction Worksheet'!G197 -> 675 | D68: M | E68: 1 | F68: =fetchcomment(E68) -> 11-430604 | G68: 1 | H68: =fetchcomment(G68) -> HAZARD CONSTRUCTION ENGR LLC | I68: 11
A69: TRINITY EQUIPMENT | B69: -4142 | C69: ='[1]Construction Worksheet'!G202 -> 21047 | D69: M | E69: 1 | F69: =fetchcomment(E69) -> 08-1H8304 | G69: 1 | H69: =fetchcomment(G69) -> GRANITE CONSTRUCTION COMPANY | I69: 8
A70: TULLY INC | B70: -4142 | C70: ='[1]Construction Worksheet'!C117 -> 31225 | D70: F | E70: 6 | F70: =fetchcomment(E70) -> 03-0H8304 04-0K6704 05-1K0504 05-1K0604 10-0Y3404 06-0Y4204 | G70: 4 | H70: =fetchcomment(G70) -> MARTIN BROTHERS CONSTRUCTION REDGWICK CONSTRUCTION CO GORDON N BALL INC GRANITE CONSTRUCTION COMPANY | I70: 3,4,5,6,10
A71: VINTAGE PAVING COMPANY | C71: ='[1]Construction Worksheet'!G210 -> 538808.26 | D71: M | E71: 1 | F71: =fetchcomment(E71) -> 10-1C7904 | G71: 1 | H71: =fetchcomment(G71) -> WALSH CONSTRUCTION COMPANY | I71: 10
A72: WESTERN TRAFFIC SUPPLUY | B72: -4142 | C72: ='[1]Construction Worksheet'!G224 -> 521225 | D72: M | E72: 3 | F72: =fetchcomment(E72) -> 04-0K6804 04-2K8204 04-0K6504 | G72: 3 | H72: =fetchcomment(G72) -> PACIFIC INFRASTRUCTURE CONSTRUCTION LLC FBD VAGUARD CONSTRUCTION INC HOSELEY CORPORATION | I72: 4
A73: ZABEL ENTERPRISES | B73: 43 | C73: ='[1]Construction Worksheet'!G230 -> 1205485 | D73: M | E73: 1 | F73: =fetchcomment(E73) -> 01-0B5304 | G73: 1 | H73: =fetchcomment(G73) -> MERCER FRASER COMPANY | I73: 1
F74: =fetchcomment(E74) ->  | H74: =fetchcomment(G74) -> 
F75: =fetchcomment(E75) ->  | H75: =fetchcomment(G75) -> 
A77: Native American | B77: Column1 | C77: Dollars | D77: M/F | E77: Contract | F77: Contract # | G77: Prime | H77: Prime Name | I77: Districts
A78: ALOHA CONSTRUCTION SERVICES | B78: -4142 | C78: ='[1]Construction Worksheet'!K9 -> 1080000 | D78: F | E78: 1 | F78: =fetchcomment(E78) -> 11-430014 | G78: 1 | H78: =fetchcomment(G78) -> RAL INVESTMENT CORPORATION DBA SILVERSTRAND CONSTRUCTION | I78: 11
A79: DRISKELL TRUCKING | B79: 43 | C79: ='[1]Construction Worksheet'!O8 -> 41000 | D79: M | E79: 1 | F79: =fetchcomment(E79) -> 03-0H8304 | G79: 1 | H79: =fetchcomment(G79) -> MARTIN BROTHERS CONSTRUCTION | I79: 3
A80: GR SUNDBERG | B80: -4142 | C80: ='[1]Construction Worksheet'!O13 -> 504934.57 | D80: M | E80: 1 | F80: =fetchcomment(E80) -> 03-4F38U4 | G80: 1 | H80: =fetchcomment(G80) -> DESILVA GATES CONSTRUCTION LP | I80: 3
A81: JON PITTMAN | B81: 43 | C81: ='[1]Construction Worksheet'!O22 -> 20000 | D81: M | E81: 1 | F81: =fetchcomment(E81) -> 03-0H8304 | G81: 1 | H81: =fetchcomment(G81) -> MARTIN BROTHERS CONSTRUCTION | I81: 3
A82: KRC SAFETY CO INC | B82: -4142 | C82: ='[1]Construction Worksheet'!O29 -> 1369730 | D82: M | E82: 4 | F82: =fetchcomment(E82) -> 05-1J4804 06-0V7804 10-0Y3404 06-0Y4204 | G82: 3 | H82: =fetchcomment(G82) -> GRANITE ROCK COMPANY ALDRIDGE ELECTRIC INC GRANITE CONSTRUCTION COMPANY | I82: 5,6,10
A83: S.T. RHOADES CONSTRUCTION | B83: -4142 | C83: ='[1]Construction Worksheet'!O39 -> 748670 | D83: M | E83: 2 | F83: =fetchcomment(E83) -> 02-1H4704 01-0G5504 | G83: 2 | H83: =fetchcomment(G83) -> BALDWIN CONTRACTING COMPANY DBA KNIFE RIVER CONSTRUCTION HIGHWAY SPECIALTY COMPANY INC | I83: 1,2
A84: SAM'S EQUIPMENT & SUPPLIES | B84: 33 | C84: ='[1]Construction Worksheet'!O50 -> 662154.67 | D84: M | E84: 4 | F84: =fetchcomment(E84) -> 05-1G9604 09-213404 01-0B5304 05-1J4804 | G84: 4 | H84: =fetchcomment(G84) -> LEE WILSON ELECTRIC COMPANY INC FISHER SAND AND GRAVEL CO MERCER FRASER COMPANY GRANITE ROCK COMPANY | I84: 1,5,9
A85: TOTAL TRAFFIC CONTROL | B85: 33 | C85: ='[1]Construction Worksheet'!O58 -> 16007.14 | D85: M | E85: 1 | F85: =fetchcomment(E85) -> 04-0K6704 | G85: 1 | H85: =fetchcomment(G85) -> REDGWICK CONSTRUCTION CO | I85: 4
F86: =fetchcomment(E86) ->  | H86: =fetchcomment(G86) -> 
F87: =fetchcomment(E87) ->  | H87: =fetchcomment(G87) -> 
A89: African American | B89: Column1 | C89: Dollars | D89: M/F | E89: Contract | F89: Contract # | G89: Prime | H89: Prime Name | I89: Districts
A90: ALLUVION BIOLOGICAL CONSULTING | B90: -4142 | C90: ='[1]Construction Worksheet'!W10 -> 154450 | D90: M | E90: 3 | F90: =fetchcomment(E90) -> 03-0H8304 01-0B5304 08-1H8304 | G90: 3 | H90: =fetchcomment(G90) -> MARTIN BROTHERS CONSTRUCTION MERCER FRASER COMPANY GRANITE CONSTRUCTION | I90: 1,3,8
A91: AMERICAN TRAFFIC BARRICADE | B91: -4142 | C91: ='[1]Construction Worksheet'!W15 -> 66840 | D91: M | E91: 1 | F91: =fetchcomment(E91) -> 08-1H8304 | G91: 1 | H91: =fetchcomment(G91) -> GRANITE CONSTRUCTION COMPANY | I91: 8
A92: APPIAN UDBE SWPPPS | B92: -4142 | C92: ='[1]Construction Worksheet'!S9 -> 5200 | D92: F | E92: 3 | F92: =fetchcomment(E92) -> 08-1J2004 10-1J7804 05-1M3704 | G92: 3 | H92: =fetchcomment(G92) -> SECURITY PAVING COMPANY INC INDFEPENDENT STRUCTURES INC GRANITE CONSTGRUCTION | I92: 5,8,10
A93: BLACK DIAMOND ASPHALT | B93: 33 | C93: ='[1]Construction Worksheet'!S15 -> 284254.8 | D93: F | E93: 2 | F93: =fetchcomment(E93) -> 01-0B5304 03-1H18U4 | G93: 2 | H93: =fetchcomment(G93) -> MERCER FRASER COMPANY TEICHERT CONSTRUCTION | I93: 1,3
A94: E-NOR INNOVATIONS INC | B94: -4142 | C94: ='[1]Construction Worksheet'!W26 -> 80130 | D94: M | E94: 1 | F94: =fetchcomment(E94) -> 11-428704 | G94: 1 | H94: =fetchcomment(G94) -> ACCU CONSTRUCTION INC | I94: 11
A95: MARVELLA STEEL PLACERS | C95: ='[1]Construction Worksheet'!S22 -> 67079.54 | D95: M | E95: 1 | F95: =fetchcomment(E95) -> 07-335305 | G95: 1 | H95: =fetchcomment(G95) -> POWELL CONSTRUCTORS INC | I95: 7
A96: SIERRA ENGINEERING | B96: -4142 | C96: ='[1]Construction Worksheet'!W36 -> 1275031.41 | D96: M | E96: 2 | F96: =fetchcomment(E96) -> 03-0H6504 10-1C7904 | G96: 2 | H96: =fetchcomment(G96) -> TEICHERT CONSTRUCTION WALSH CONSTRUCTION COMPANY | I96: 3,10
A97: TK TRANSPORTATION | B97: 43 | C97: ='[1]Construction Worksheet'!W47 -> 50000 | D97: M | E97: 1 | F97: =fetchcomment(E97) -> 03-0H8304 | G97: 1 | H97: =fetchcomment(G97) -> MARTIN BROTHERS CONSTRUCTION | I97: 3
F98: =fetchcomment(E98) ->  | H98: =fetchcomment(G98) -> 
F99: =fetchcomment(E99) ->  | H99: =fetchcomment(G99) -> 
A101: Sub Cont Asian | B101: Column1 | C101: Dollars | D101: M/F | E101: Contract | F101: Contract # | G101: Prime | H101: Prime Name | I101: Districts
A102: 101 TRUCKING | B102: 43 | C102: ='[1]Construction Worksheet'!AE8 -> 61500 | D102: M | E102: 1 | F102: =fetchcomment(E102) -> 05-1J4804 | G102: 1 | H102: =fetchcomment(G102) -> GRANITE ROCK COMPANY | I102: 5
A103: ALL CITY TRUCKING | B103: 43 | C103: ='[1]Construction Worksheet'!AE15 -> 300160 | D103: M | E103: 1 | F103: =fetchcomment(E103) -> 05-1J4804 | G103: 1 | H103: =fetchcomment(G103) -> GRANITE ROCK COMPANY | I103: 5
A104: DREAMBUILDERS CONSTRUCTION | B104: -4142 | C104: ='[1]Construction Worksheet'!AE20 -> 6617418.26 | D104: M | E104: 2 | F104: =fetchcomment(E104) -> 04-4J9804 07-332504 | G104: 1 | H104: =fetchcomment(G104) -> DREAMBUILDER | I104: 4,7
A105: NEW GENERATION AGGREGATE | B105: 43 | C105: ='[1]Construction Worksheet'!AA10 -> 62125 | D105: F | E105: 1 | F105: =fetchcomment(E105) -> 03-0H8304 | G105: 1 | H105: =fetchcomment(G105) -> MARTIN BROTHERS CONSTRUCTION | I105: 3
A106: SEQUOIA CONSULTANT INC | B106: -4142 | C106: ='[1]Construction Worksheet'!AE28 -> 1275326 | D106: M | E106: 2 | F106: =fetchcomment(E106) -> 09-213404 08-1H8304 | G106: 2 | H106: =fetchcomment(G106) -> FISHER SAND AND GRAVEL CO GRANITE CONSTRUCTION COMPANY | I106: 8,9
A107: TSI ENGINEERING | C107: ='[1]Construction Worksheet'!AE35 -> 3728835.1 | D107: M | E107: 1 | F107: =fetchcomment(E107) -> 06-0U7704 | G107: 1 | H107: =fetchcomment(G107) -> TSI ENGINEERING | I107: 6
F108: =fetchcomment(E108) ->  | H108: =fetchcomment(G108) -> 
A110: Asian Pacific | B110: Column1 | C110: Dollars | D110: M/F | E110: Contract | F110: Contract # | G110: Prime | H110: Prime Name | I110: Districts
A111: ACE FENCE COMPANY | C111: ='[1]Construction Worksheet'!AI9 -> 74519 | D111: F | E111: 2 | F111: =fetchcomment(E111) -> 07-325304 07-335304 | G111: 1 | H111: =fetchcomment(G111) -> POWELL CONSTRUCTORS | I111: 7
A112: CALIFORNIA PROFESSIONAL | B112: -4142 | C112: ='[1]Construction Worksheet'!AM10 -> 19788 | D112: M | E112: 1 | F112: =fetchcomment(E112) -> 08-1H8304 | G112: 1 | H112: =fetchcomment(G112) -> GRTANITE CONSTRUCTION COMPANY | I112: 8
A113: GLOBAL ROAD SEALINMG | B113: -4142 | C113: ='[1]Construction Worksheet'!AM18 -> 20400 | D113: M | E113: 1 | F113: =fetchcomment(E113) -> 08-1J2004 | G113: 1 | H113: =fetchcomment(G113) -> SECURITY PASVING COMPANT INCV | I113: 8
A114: LMS TRANSPORT | B114: 33 | C114: ='[1]Construction Worksheet'!AM31 -> 5991441.2 | D114: M | E114: 4 | F114: =fetchcomment(E114) -> 09-213404 12-0H0474 08-1H8304 05-1M3704 | G114: 3 | H114: =fetchcomment(G114) -> FISHER SAND AND GRAVEL CO SECUROTY PAVING AND GRADING INC GRANITE CONSTRUCTION | I114: 5,8,9,12
A115: NITTA EROSION CONTROL | B115: -4142 | C115: ='[1]Construction Worksheet'!AI23 -> 46611.8 | D115: F | E115: 3 | F115: =fetchcomment(E115) -> 01-0G5504 05-1K0604 06-0Y4202 | G115: 3 | H115: =fetchcomment(G115) -> HIGHWAY SPECIALTY COMPANY INC GORDON N BALL INC GRANITE CONSTRUCTION | I115: 1,5,6
A116: PRIME SUPPLY 1 | B116: 33 | C116: ='[1]Construction Worksheet'!AI33 -> 129540.29 | D116: F | E116: 2 | F116: =fetchcomment(E116) -> 02-4F5204 11-428704 | G116: 2 | H116: =fetchcomment(G116) -> MEYERS EARTHWORK INC ACCU CONSTRUCTION INC | I116: 2,11
A117: TRAFFIC LOOPS CRACKFILLING INC | B117: -4142 | C117: ='[1]Construction Worksheet'!AI46 -> 343100 | D117: F | E117: 3 | F117: =fetchcomment(E117) -> 09-213404 08-1J2004 06-0Y4204 | G117: 3 | H117: =fetchcomment(G117) -> FISHER SAND AND GRAVEL CO SECURITY PAVING COMPANY GRANITE CONSTRUCTION | I117: 6,8,9
F118: =fetchcomment(E118) ->  | H118: =fetchcomment(G118) -> 
F119: =fetchcomment(E119) ->  | H119: =fetchcomment(G119) -> 
A121: Other | C121: Dollars | D121: M/F | E121: Contract | F121: Contract # | G121: Prime | H121: Prime Name | I121: Districts
F122: =fetchcomment(E122) ->  | H122: =fetchcomment(G122) -> 
F123: =fetchcomment(E123) ->  | H123: =fetchcomment(G123) -> 
F124: =fetchcomment(E124) ->  | H124: =fetchcomment(G124) -> 
A126: Non Minority Women | B126: Column1 | C126: Dollars | D126: M/F | E126: Contract | F126: Contract # | G126: Prime | H126: Prime Name | I126: Districts
A127: ACTION SWEEPING SERVICE | B127: 43 | C127: ='[1]Construction Worksheet'!AQ10 -> 282030 | D127: F | E127: 3 | F127: =fetchcomment(E127) -> 03-0H6504 03-1H18U4 06-0Y4204 | G127: 2 | H127: =fetchcomment(G127) -> TEICHERT CONSTRUCTION GRANITE CONSTRUCTION COMPANY | I127: 3,6
A128: ALTA VISTA ENGINEERING | C128: ='[1]Construction Worksheet'!AQ16 -> 48062 | D128: F | E128: 1 | F128: =fetchcomment(E128) -> 04-0K6504 | G128: 1 | H128: =fetchcomment(G128) -> HOSELEY CORPORATION | I128: 4
A129: AURORA INDUSTRIAL HYGIENE | C129: ='[1]Construction Worksheet'!AQ25 -> 3000 | D129: F | E129: 2 | F129: =fetchcomment(E129) -> 05-1M3704 07-335304 | G129: 2 | H129: =fetchcomment(G129) -> POWELL CONSTRUCTORS GRANITE CONSTRUCTION CO | I129: 5.7
A130: AVILA TRAFFIC SAFETY | B130: 33 | C130: ='[1]Construction Worksheet'!AQ32 -> 210884 | D130: F | E130: 3 | F130: =fetchcomment(E130) -> 05-1K0604 06-0Y4204 10-1C7904 | G130: 3 | H130: =fetchcomment(G130) -> GORDON N BALL INC GRANITE CONSTRUCTION COMPANY WALSH CONSTRUCTION COMPANY | I130: 5,6,10
A131: BT TRUCKING INC | B131: 43 | C131: ='[1]Construction Worksheet'!AQ39 -> 4104000 | D131: F | E131: 2 | F131: =fetchcomment(E131) -> 03-0H8304 09-213404 | G131: 2 | H131: =fetchcomment(G131) -> MARTIN BROTHERS CONSTRUCTION FISHER SAND AND GRAVEL CO | I131: 3,9
A132: CES | C132: ='[1]Construction Worksheet'!AQ44 -> 9979 | D132: F | E132: 1 | F132: =fetchcomment(E132) -> 07-359604 | G132: 1 | H132: =fetchcomment(G132) -> COMET ELECTRIC INC | I132: 7
A133: COLUMBIA ELECTRIC INC | B133: -4142 | C133: ='[1]Construction Worksheet'!AQ56 -> 341350 | D133: F | E133: 2 | F133: =fetchcomment(E133) -> 04-0K6704 04-2K8204 | G133: 2 | H133: =fetchcomment(G133) -> REDGWICK CONSTRUCTION CO FBD VANGUARD CONSTRUCITON INC | I133: 4
A134: DEES BURKE ENGINEERING | B134: -4142 | C134: ='[1]Construction Worksheet'!AQ61 -> 866676 | D134: F | E134: 2 | F134: =fetchcomment(E134) -> 03-1H18U4 05-1K0604 | G134: 2 | H134: =fetchcomment(G134) -> TEICHERT CONSTRUCTION GORDON N BALL | I134: 3,5
A135: EVERLIGHTS INC | B135: 33 | C135: ='[1]Construction Worksheet'!AQ67 -> 819220.96 | D135: F | E135: 1 | F135: =fetchcomment(E135) -> 06-0V7804 | G135: 1 | H135: =fetchcomment(G135) -> 06-0V7804 | I135: 6
A136: GALLAWAY ENTERPRISES | B136: -4142 | C136: ='[1]Construction Worksheet'!AQ74 -> 51971.6 | D136: F | E136: 1 | F136: =fetchcomment(E136) -> 03-0H6504 | G136: 1 | H136: =fetchcomment(G136) -> TEIRCHERT CONSTRUCTION | I136: 3
A137: J & M LAND RESTORATION | B137: -4142 | C137: ='[1]Construction Worksheet'!AQ80 -> 23856.34 | D137: F | E137: 1 | F137: =fetchcomment(E137) -> 10-0Y3404 | G137: 1 | H137: =fetchcomment(G137) -> 10-0Y3404 | I137: 10
A138: JARRETT FOUNDATIONS | B138: -4142 | C138: ='[1]Construction Worksheet'!AQ87 -> 1090754 | D138: F | E138: 2 | F138: =fetchcomment(E138) -> 01-0B5304 05-1K0604 | G138: 2 | H138: =fetchcomment(G138) -> 01-0B5304 05-1K0604 | I138: 1,5
A139: K & K CONSTRUCTION SUPPLY | B139: 33 | C139: ='[1]Construction Worksheet'!AQ93 -> 16303.87 | D139: F | E139: 1 | F139: =fetchcomment(E139) -> 03-1H18U4 | G139: 1 | H139: =fetchcomment(G139) -> 03-1H18U4 | I139: 3
A140: LINDY'S COLD PLANNING | B140: -4142 | C140: ='[1]Construction Worksheet'!AQ107 -> 244540 | D140: F | E140: 3 | F140: =fetchcomment(E140) -> 09-213404 08-1H8304 05-1M3704 | G140: 2 | H140: =fetchcomment(G140) -> FISHER SAND AND GRAVEL CO GRANITE CONSTRUCTION COMPANY | I140: 5,8,9
A141: MCW TRAFFIC CONTROL | B141: -4142 | C141: ='[1]Construction Worksheet'!AQ112 -> 204000 | D141: F | E141: 1 | F141: =fetchcomment(E141) -> 10-1J7804 | G141: 1 | H141: =fetchcomment(G141) -> INDEPENDENT STRUCTURES INC | I141: 10
A142: MOUNTAINVIEW BIOLOGICAL | B142: -4142 | C142: ='[1]Construction Worksheet'!AQ122 -> 519648.08 | D142: F | E142: 2 | F142: =fetchcomment(E142) -> 09-213404 08-1J2004 | G142: 2 | H142: =fetchcomment(G142) -> FISHER SAND AND GRAVEL CO SECURITY PAVING COMPANY | I142: 8,9
A143: PC & N CONSTRUCTION INC | B143: -4142 | C143: ='[1]Construction Worksheet'!AQ139 -> 998299 | D143: F | E143: 4 | F143: =fetchcomment(E143) -> 04-2K8204 05-1K0604 04-0K6504 06-0Y4204 | G143: 4 | H143: =fetchcomment(G143) -> FBD VANGUARD CONSTRUCTION INC GORDON N BALL HOSELEY CORPORATION GRANITE CONSTRUCTION | I143: 4,5,6
A144: PAYCO SPECIALTIES | B144: -4142 | C144: ='[1]Construction Worksheet'!AQ128 -> 40912 | D144: F | E144: 2 | F144: =fetchcomment(E144) -> 11-411804 11-430604 | G144: 2 | H144: =fetchcomment(G144) -> PAL GENERAL ENGINEERING INC HAZARD CONSTRUCTION ENGINEER LLC | I144: 11
A145: PLAYA SAFETY INC | C145: ='[1]Construction Worksheet'!AQ145 -> 164114.65 | D145: F | E145: 2 | F145: =fetchcomment(E145) -> 07-325304 07-335304 | G145: 1 | H145: =fetchcomment(G145) -> POWELL CONSTRUCTORS | I145: 7
A146: QUALITY HYDROSEEDING | B146: -4142 | C146: ='[1]Construction Worksheet'!AQ152 -> 37138 | D146: F | E146: 1 | F146: =fetchcomment(E146) -> 08-1H8304 | G146: 1 | H146: =fetchcomment(G146) -> GRANITE CONSTRUCTION COMPANY | I146: 8
A147: ROLL N' ROCK CONSTRUCTION | B147: -4142 | C147: ='[1]Construction Worksheet'!AQ166 -> 504675 | D147: F | E147: 5 | F147: =fetchcomment(E147) -> 03-0H8304 02-4F5204 01-0B5304 01-0G5504 04-0AA444 | G147: 5 | H147: =fetchcomment(G147) -> MARTIN BROTHERS CONSTRUCTION MEYERS EARTHWORK INC MERCER FRASER HIGHWAY SPECIALTY COMPANY JOHN SEMSEN LANDSCAPING CO INC | I147: 1,2,3,4
A148: ROUCH REBAR INC | C148: ='[1]Construction Worksheet'!AQ190 -> 41468 | D148: F | E148: 1 | F148: =fetchcomment(E148) -> 07-325304 | G148: 1 | H148: =fetchcomment(G148) -> POWELL CONSTRUCTORS | I148: 7
A149: RUPERT CONSTRUCTION SUPPLY | B149: 33 | C149: ='[1]Construction Worksheet'!AQ185 -> 1131772.51 | D149: F | E149: 4 | F149: =fetchcomment(E149) -> 04-0K6704 01-0B5304 05-1K0604 07-325304 | G149: 4 | H149: =fetchcomment(G149) -> REDGWICK CONSTRUCTION CO MERCER FRASER COMPANY GORDON N BALL POWELL CONSTRUCTORS INC | I149: 1,4,5,7
A150: SM SALES | C150: ='[1]Construction Worksheet'!AQ196 -> 13103.13 | D150: F | E150: 1 | F150: =fetchcomment(E150) -> 07-325304 | G150: 1 | H150: =fetchcomment(G150) -> POWELL CONSTRUCTORS | I150: 7
A151: SUPER SEAL & STRIPE | B151: -4142 | C151: ='[1]Construction Worksheet'!AQ210 -> 535791 | D151: F | E151: 4 | F151: =fetchcomment(E151) -> 05-1G9604 04-3J1304 05-1M3704 10-1C7904 | G151: 4 | H151: =fetchcomment(G151) -> LEE WILSON ELECTRIC COMPANY INC PTM GENERAL ENGINEERING SERVICES GRANITE CONSTRUCTION COMPANY WALSH CONSTRUCTION COMPANY | I151: 4,5,10
A152: T & S DVBE | B152: 33 | C152: ='[1]Construction Worksheet'!AQ221 -> 856978.8 | D152: F | E152: 3 | F152: =fetchcomment(E152) -> 02-1H4704 03-0H6504 03-1H18U4 | G152: 2 | H152: =fetchcomment(G152) -> BALDWIN CONTRACTING COMPANY DBA KNIFE RIVER CONSTRUCTION TEICHERT CONSTRUCTION | I152: 2,3
A153: TERRA SUPPLY INC | B153: 33 | C153: ='[1]Construction Worksheet'!AQ226 -> 26580.46 | D153: F | E153: 1 | F153: =fetchcomment(E153) -> 03-1H18U4 | G153: 1 | H153: =fetchcomment(G153) -> TEICHERT CONSTRUCTION | I153: 3
A154: TRIUMPH GEO-SYNTHETICS INC | B154: 33 | C154: ='[1]Construction Worksheet'!AQ233 -> 39982.75 | D154: F | E154: 2 | F154: =fetchcomment(E154) -> 04-0K6704 03-1H18U4 | G154: 2 | H154: =fetchcomment(G154) -> REDGWICK CONSTRUCTION CO TEICHERT CONSTRUCTION | I154: 3,4
A155: TYRRELL RESOURCES | B155: -4142 | C155: ='[1]Construction Worksheet'!AQ246 -> 507435 | D155: F | E155: 6 | F155: =fetchcomment(E155) -> 02-1H4704 02-4F5204 01-0B5304 03-0H6504 03-1H18U4 03-4F38U4 | G155: 5 | H155: =fetchcomment(G155) -> BALDWIN CONTRACTING COMPANY DBA KNIFE RIVER CONSTRUCTION MEYERS EARTHWORK INC MERCER FRASER TEICHERT CONSTRUCTION DESILVA GATES CONSTRUCTION | I155: 1,2,3
A156: VERIDICO GROUP INC | B156: -4142 | C156: ='[1]Construction Worksheet'!AQ252 -> 3045 | D156: F | E156: 1 | F156: =fetchcomment(E156) -> 01-0G5504 | G156: 1 | H156: =fetchcomment(G156) -> HIGHWAY SPECIALTY COMPANY | I156: 1
A157: WATER COMPONENTS & BUILDING | B157: 33 | C157: ='[1]Construction Worksheet'!AQ260 -> 125652.25 | D157: F | E157: 2 | F157: =fetchcomment(E157) -> 01-0B5304 03-1H18U4 | G157: 2 | H157: =fetchcomment(G157) -> TEICHERT CONSTRUCTION MERCER FRASER COMPANY | I157: 1,3
A158: WEST COAST WATER & TRUCKING | B158: 43 | C158: ='[1]Construction Worksheet'!AQ272 -> 233380 | D158: F | E158: 3 | F158: =fetchcomment(E158) -> 03-0H6504 03-1H18U4 03-4F38U4 | G158: 2 | H158: =fetchcomment(G158) -> TEICHERT CONSTRUCTION DESILVA GATES CONSTRUCTION | I158: 3
F159: =fetchcomment(E159) -> 
F160: =fetchcomment(E160) -> 
B161: =COUNTIF(B30:B160, "33") -> 17
B162: =COUNTIF(B30:B160, "43") -> 14
B163: =COUNTIF(B30:B160, "-4142") -> 55
A164: Prime Name | C164: # of Contracts | D164: Contract # | E164: Prime Name | F164: # of Contracts | G164: Contract # | H164: Prime Name | I164: # of Contracts | J164: Contract #
A165: ACCU CONSTRUCTION, INC. | C165: 1 | D165: =fetchcomment(C165) -> 11-428704 | E165: MARTIN BROTHERS CONSTRUCTION | F165: 1 | G165: =fetchcomment(F165) -> 03-0H8304
A166: ALDRIDGE ELECTRIC INC | C166: 1 | D166: =fetchcomment(C166) -> 06-0V7804 | E166: MERCER-FRASER COMPANY | F166: 1 | G166: =fetchcomment(F166) -> 01-0B5304
A167: BALDWIN CONTRACTING COMPANY INC. DBA. KNIFE RIVER CONSTRUC TION | C167: 1 | D167: =fetchcomment(C167) -> 02-1H4704 | E167: MEYERS EARTHWORK, INC. | F167: 1 | G167: =fetchcomment(F167) -> 02-4F5204
A168: COMET ELECTRIC INC | C168: 1 | D168: =fetchcomment(C168) -> 07-359604 | E168: PACIFIC INFRASTRUCTURE CONSTRUCTION LLC | F168: 1 | G168: =fetchcomment(F168) -> 04-0K6804
A169: DESILVA GATES CONSTRUCTION LP | C169: 1 | D169: =fetchcomment(C169) -> 03-4F38U4 | E169: PAL GENERAL ENGINEERING INC | F169: 2 | G169: =fetchcomment(F169) -> 11-411804 11-428804
A170: DREAMBUILDER CONSTRUCTION | C170: 2 | D170: =fetchcomment(C170) -> 04-4J9804 07-332504 | E170: PETERSON-CHASE GENERAL ENGINEERING CONSTRUCTION INC | F170: 1 | G170: =fetchcomment(F170) -> 07-329804
A171: FBD VANGUARD CONSTRUCTION INC | C171: 1 | D171: =fetchcomment(C171) -> 04-2K8204 | E171: POWELL CONSTRUCTORS INC | F171: 2 | G171: =fetchcomment(F171) -> 07-335304 07-325304
A172: FISHER SAND & GRAVEL CO | C172: 1 | D172: =fetchcomment(C172) -> 09-213404 | E172: PTM GENERAL ENGINEERING SERVICE | F172: 2 | G172: =fetchcomment(F172) -> 04-3J1304 07-351804
A173: GORDON N. BALL, INC. | C173: 2 | D173: =fetchcomment(C173) -> 05-1K0504 05-1K0604 | E173: RAL INVESTMENT CORPORATION DBA SILVERSTRAND CONSTRUCTION | F173: 1 | G173: =fetchcomment(F173) -> 11-430014
A174: GRANITE CONSTRUCTION COMPANY | C174: 4 | D174: =fetchcomment(C174) -> 08-1H8304 10-0Y3404 05-1M3704 06-0Y4202 | E174: REDGWICK CONSTRUCTION CO | F174: 1 | G174: =fetchcomment(F174) -> 04-0K6704
A175: GRANITE ROCK COMPANY | C175: 1 | D175: =fetchcomment(C175) -> 05-1J4804 | E175: SECURITY PAVING COMPANY INC | F175: 2 | G175: =fetchcomment(F175) -> 12-0H0474 08-1J2004
A176: HAZARD CONSTRUCTION ENGINEERING LLC | C176: 1 | D176: =fetchcomment(C176) -> 11-430604 | E176: STERNDAHL ENTERPRISES INC | F176: 1 | G176: =fetchcomment(F176) -> 04-0P48U4
A177: HIGHWAY SPECIALTY COMPANY INC | C177: 1 | D177: =fetchcomment(C177) -> 01-0G5504 | E177: TEICHERT CONSTRUCTION | F177: 2 | G177: =fetchcomment(F177) -> 03-0H6504 03-1H18U4
A178: HOSELEY CORPORATION | C178: 1 | D178: =fetchcomment(C178) -> 04-0K6504 | E178: TSI ENGINEERING INC | F178: 1 | G178: =fetchcomment(F178) -> 06-0U7704
A179: INDEPENDENT STRUCTURE CONSTRUCTION LLC | C179: 1 | D179: =fetchcomment(C179) -> 10-1J7804 | E179: WALSH CONSTRUCTON COMPANY | F179: 1 | G179: =fetchcomment(F179) -> 10-1C7904
A180: JOHN SEMESEN LANDSCAPING CO INC | C180: 1 | D180: =fetchcomment(C180) -> 04-0AA444
A181: LEE WILSON ELECTRIC COMPANY, INC. | C181: 1 | D181: =fetchcomment(C181) -> 05-1G9604
A183: To see names of prime contractors/contract numbers, place your cursor on comment tab (red triangle).
A184: Caltrans DBE Reports: http://www.dot.ca.gov/hq/bep/reports.htm
